[Event "Rapid della Domenica"]
[Site "Chess.com"]
[Date "2020.05.10"]
[Round "5"]
[White "Carbon"]
[Black "pedrak"]
[Result "1-0"]
[WhiteElo "1751"]
[BlackElo "1682"]
[TimeControl "720+3"]
[EndTime "8:05:10 PDT"]
[Termination "Carbon ha vinto per abbandono"]

1. e4 {[%clk 0:12:02.6]} 1... d5 {[%clk 0:12:00.6]} 2. exd5 {[%clk 0:12:03.9]}
2... Qxd5 {[%clk 0:12:02]} 3. Nc3 {[%clk 0:12:05.8]} 3... Qd6 {[%clk 0:12:03.3]}
4. g3 {[%clk 0:12:07.5]} 4... Nf6 {[%clk 0:12:04.6]} 5. Bg2 {[%clk 0:12:08.4]}
5... c6 {[%clk 0:12:06]} 6. d3 {[%clk 0:12:06.9]} 6... Bg4 {[%clk 0:12:04.7]} 7.
Nge2 {[%clk 0:12:06.9]} 7... e6 {[%clk 0:12:05.7]} 8. O-O {[%clk 0:12:07.8]}
8... Be7 {[%clk 0:12:05.8]} 9. Bf4 {[%clk 0:12:08.6]} 9... Qd8 {[%clk
0:12:06.3]} 10. Re1 {[%clk 0:11:52.8]} 10... O-O {[%clk 0:12:07.2]} 11. Qd2
{[%clk 0:11:46]} 11... Nd5 {[%clk 0:12:07.6]} 12. Nxd5 {[%clk 0:11:41.5]} 12...
cxd5 {[%clk 0:12:08.4]} 13. d4 {[%clk 0:11:31.3]} 13... Nc6 {[%clk 0:12:05.8]}
14. b3 {[%clk 0:11:28.9]} 14... Rc8 {[%clk 0:12:00.8]} 15. c3 {[%clk 0:11:25.3]}
15... b5 {[%clk 0:11:50.6]} 16. h3 {[%clk 0:11:24.9]} 16... Bf5 {[%clk
0:11:51.3]} 17. Rac1 {[%clk 0:11:19.3]} 17... Ba3 {[%clk 0:11:51.6]} 18. Rcd1
{[%clk 0:11:12.2]} 18... a5 {[%clk 0:11:43]} 19. Nc1 {[%clk 0:11:12.3]} 19...
Bd6 {[%clk 0:11:25.4]} 20. Bxd6 {[%clk 0:11:00.5]} 20... Qxd6 {[%clk 0:11:26.7]}
21. Nd3 {[%clk 0:11:02.5]} 21... Bxd3 {[%clk 0:11:28.4]} 22. Qxd3 {[%clk
0:11:04]} 22... Rc7 {[%clk 0:11:26.8]} 23. Qxb5 {[%clk 0:11:01.1]} 23... Rfc8
{[%clk 0:11:24.4]} 24. Qd3 {[%clk 0:10:37.6]} 24... Qa3 {[%clk 0:11:21.4]} 25.
Rd2 {[%clk 0:10:31.9]} 25... a4 {[%clk 0:11:16.4]} 26. b4 {[%clk 0:09:18.8]}
26... Nb8 {[%clk 0:09:51.7]} 27. Rc2 {[%clk 0:08:40.5]} 27... Rxc3 {[%clk
0:09:49.2]} 28. Rxc3 {[%clk 0:08:35.5]} 28... Qxc3 {[%clk 0:09:42.2]} 29. Qxc3
{[%clk 0:08:31.3]} 29... Rxc3 {[%clk 0:09:43.3]} 30. Bxd5 {[%clk 0:08:24.9]}
30... Kf8 {[%clk 0:09:22.7]} 31. Be4 {[%clk 0:08:15.2]} 31... Rc4 {[%clk
0:09:23.8]} 32. d5 {[%clk 0:08:10.9]} 32... Rxb4 {[%clk 0:09:15.5]} 33. dxe6
{[%clk 0:08:06.8]} 33... fxe6 {[%clk 0:09:12.1]} 34. Bxh7 {[%clk 0:08:06.5]}
34... Kf7 {[%clk 0:09:13.6]} 35. Bb1 {[%clk 0:07:40.3]} 35... Nc6 {[%clk
0:09:12.4]} 36. Rf1 {[%clk 0:07:26.7]} 36... Nd4 {[%clk 0:09:08.9]} 37. Kg2
{[%clk 0:07:22.8]} 37... Ne2 {[%clk 0:09:06.1]} 38. Bc2 {[%clk 0:06:51.5]} 38...
Nc3 {[%clk 0:09:03.3]} 39. a3 {[%clk 0:06:40.2]} 39... Rb2 {[%clk 0:08:53.1]}
40. Bd3 {[%clk 0:06:40.7]} 40... Rb3 {[%clk 0:08:44.3]} 41. Bc4 {[%clk
0:06:34.8]} 41... Rxa3 {[%clk 0:08:44.9]} 42. Re1 {[%clk 0:06:36.6]} 42... Nd5
{[%clk 0:08:46.6]} 43. Rd1 {[%clk 0:06:21.1]} 43... Nf6 {[%clk 0:08:05.6]} 44.
Rd6 {[%clk 0:06:12.7]} 44... Nd5 {[%clk 0:08:00.6]} 45. Bxd5 {[%clk 0:06:08.4]}
45... exd5 {[%clk 0:08:02.2]} 46. Rxd5 {[%clk 0:06:09.2]} 46... Ra1 {[%clk
0:08:04]} 47. Ra5 {[%clk 0:06:05.6]} 47... a3 {[%clk 0:08:05.6]} 48. g4 {[%clk
0:06:00.5]} 48... a2 {[%clk 0:08:06]} 49. h4 {[%clk 0:05:57.8]} 49... Ke6 {[%clk
0:07:57.2]} 50. g5 {[%clk 0:05:56.2]} 50... g6 {[%clk 0:07:44.2]} 51. f4 {[%clk
0:05:21.7]} 51... Kf7 {[%clk 0:07:44.3]} 52. f5 {[%clk 0:05:18.6]} 52... gxf5
{[%clk 0:07:41.4]} 53. Rxf5+ {[%clk 0:05:20]} 53... Kg6 {[%clk 0:07:43.2]} 54.
Ra5 {[%clk 0:05:18]} 54... Kh5 {[%clk 0:07:44.3]} 55. g6+ {[%clk 0:05:11.7]}
55... Kh6 {[%clk 0:07:44.1]} 56. h5 {[%clk 0:05:10]} 56... Kg7 {[%clk
0:07:33.6]} 57. Ra7+ {[%clk 0:05:03.6]} 57... Kf6 {[%clk 0:07:18.4]} 58. g7
{[%clk 0:05:02.6]} 58... Rb1 {[%clk 0:06:42.8]} 59. g8=Q {[%clk 0:04:56.4]}
59... Rb2+ {[%clk 0:06:35]} 60. Kf3 {[%clk 0:04:46.5]} 1-0

[Event "Rapid della Domenica"]
[Site "Chess.com"]
[Date "2020.05.10"]
[Round "5"]
[White "fausto2p"]
[Black "fisherpez"]
[Result "0-1"]
[WhiteElo "1078"]
[BlackElo "1504"]
[TimeControl "720+3"]
[EndTime "8:06:21 PDT"]
[Termination "fisherpez ha vinto per tempo"]

1. d4 {[%clk 0:12:02.9]} 1... e6 {[%clk 0:12:01.4]} 2. Nf3 {[%clk 0:12:02.7]}
2... b6 {[%clk 0:12:02.8]} 3. c4 {[%clk 0:11:44.9]} 3... Bb4+ {[%clk 0:12:02.7]}
4. Bd2 {[%clk 0:11:40.3]} 4... Qe7 {[%clk 0:12:04.4]} 5. a3 {[%clk 0:11:37.3]}
5... Bxd2+ {[%clk 0:12:04.9]} 6. Qxd2 {[%clk 0:11:22]} 6... Bb7 {[%clk
0:12:05.4]} 7. Nc3 {[%clk 0:11:01.2]} 7... Nf6 {[%clk 0:12:03.8]} 8. g3 {[%clk
0:10:55.7]} 8... O-O {[%clk 0:11:58.3]} 9. Bg2 {[%clk 0:10:56.8]} 9... d6 {[%clk
0:11:58.2]} 10. O-O {[%clk 0:10:57.3]} 10... Nbd7 {[%clk 0:11:56.6]} 11. Rfe1
{[%clk 0:10:32.1]} 11... c5 {[%clk 0:11:41.4]} 12. e3 {[%clk 0:09:40.9]} 12...
Rab8 {[%clk 0:11:35.8]} 13. Qc2 {[%clk 0:09:11.8]} 13... Rfc8 {[%clk 0:11:29.3]}
14. b3 {[%clk 0:08:47.5]} 14... a6 {[%clk 0:11:19]} 15. Qd3 {[%clk 0:06:36.7]}
15... h6 {[%clk 0:11:14.2]} 16. e4 {[%clk 0:05:17.8]} 16... cxd4 {[%clk
0:10:10]} 17. Nxd4 {[%clk 0:05:09.6]} 17... Nc5 {[%clk 0:10:10.1]} 18. Qc2
{[%clk 0:05:05.6]} 18... e5 {[%clk 0:09:55.4]} 19. Nf5 {[%clk 0:04:57.5]} 19...
Qf8 {[%clk 0:09:38.8]} 20. Rad1 {[%clk 0:04:34.9]} 20... Rd8 {[%clk 0:09:28]}
21. b4 {[%clk 0:04:08.8]} 21... Ne6 {[%clk 0:09:21.7]} 22. Nd5 {[%clk
0:03:12.1]} 22... Bxd5 {[%clk 0:08:47.4]} 23. exd5 {[%clk 0:02:52.7]} 23... Nc7
{[%clk 0:08:26.9]} 24. Bh3 {[%clk 0:02:13.9]} 24... a5 {[%clk 0:07:44.2]} 25.
bxa5 {[%clk 0:01:58.2]} 25... bxa5 {[%clk 0:07:44.8]} 26. Rb1 {[%clk 0:01:55.1]}
26... Na6 {[%clk 0:07:36.1]} 27. Rxb8 {[%clk 0:01:46]} 27... Rxb8 {[%clk
0:07:37.3]} 28. Rb1 {[%clk 0:01:45.2]} 28... Nc5 {[%clk 0:07:32.6]} 29. Rxb8
{[%clk 0:01:28.1]} 29... Qxb8 {[%clk 0:07:33.2]} 30. Ne7+ {[%clk 0:01:21.9]}
30... Kf8 {[%clk 0:07:16.2]} 31. Nc6 {[%clk 0:01:03.3]} 31... Qb7 {[%clk
0:07:09.4]} 32. Nxa5 {[%clk 0:00:54]} 32... Qa6 {[%clk 0:07:03.7]} 33. Nc6
{[%clk 0:00:23.4]} 33... Qxa3 {[%clk 0:07:04.1]} 0-1

[Event "Rapid della Domenica"]
[Site "Chess.com"]
[Date "2020.05.10"]
[Round "5"]
[White "laremaro"]
[Black "Simo2005"]
[Result "0-1"]
[WhiteElo "1626"]
[BlackElo "1692"]
[TimeControl "720+3"]
[EndTime "8:08:08 PDT"]
[Termination "Simo2005 ha vinto per scaccomatto"]

1. e4 {[%clk 0:12:01.2]} 1... d6 {[%clk 0:11:52.6]} 2. d3 {[%clk 0:11:49.9]}
2... Nf6 {[%clk 0:11:48.1]} 3. Nf3 {[%clk 0:11:45.6]} 3... g6 {[%clk 0:11:45]}
4. g3 {[%clk 0:11:47.2]} 4... Bg7 {[%clk 0:11:41.9]} 5. Bg2 {[%clk 0:11:48.7]}
5... O-O {[%clk 0:11:39.9]} 6. Nbd2 {[%clk 0:11:47.7]} 6... c5 {[%clk
0:10:56.3]} 7. O-O {[%clk 0:11:43.9]} 7... Nc6 {[%clk 0:10:30]} 8. c3 {[%clk
0:11:44.5]} 8... d5 {[%clk 0:09:13.6]} 9. e5 {[%clk 0:11:34.6]} 9... Nd7 {[%clk
0:08:56.5]} 10. d4 {[%clk 0:11:04.2]} 10... cxd4 {[%clk 0:08:47.7]} 11. cxd4
{[%clk 0:11:05.7]} 11... Qb6 {[%clk 0:08:26.3]} 12. Nb3 {[%clk 0:11:00.5]} 12...
Na5 {[%clk 0:07:14]} 13. Nxa5 {[%clk 0:10:31.9]} 13... Qxa5 {[%clk 0:07:12]} 14.
Bd2 {[%clk 0:09:52.1]} 14... Qb5 {[%clk 0:06:53.7]} 15. Bc3 {[%clk 0:09:28.8]}
15... Nb6 {[%clk 0:06:46]} 16. b3 {[%clk 0:09:18.1]} 16... Be6 {[%clk
0:05:50.6]} 17. a4 {[%clk 0:09:08.8]} 17... Qc6 {[%clk 0:04:41.9]} 18. Rc1
{[%clk 0:09:05.6]} 18... Rac8 {[%clk 0:04:05.9]} 19. a5 {[%clk 0:08:55.4]} 19...
Nd7 {[%clk 0:03:53.5]} 20. Bb4 {[%clk 0:08:35.6]} 20... Qb5 {[%clk 0:03:16.4]}
21. Qd2 {[%clk 0:08:21.6]} 21... Rxc1 {[%clk 0:02:58.6]} 22. Rxc1 {[%clk
0:08:22.2]} 22... Re8 {[%clk 0:02:44]} 23. Bf1 {[%clk 0:07:56.5]} 23... Bh6
{[%clk 0:02:22.5]} 24. Qc3 {[%clk 0:07:10.7]} 24... Qc6 {[%clk 0:02:01.5]} 25.
Qxc6 {[%clk 0:07:06.4]} 25... bxc6 {[%clk 0:01:56.9]} 26. Rxc6 {[%clk
0:07:07.5]} 26... Bg4 {[%clk 0:01:46.7]} 27. Bg2 {[%clk 0:06:54.8]} 27... Rb8
{[%clk 0:01:36]} 28. Bc5 {[%clk 0:06:55.7]} 28... Rxb3 {[%clk 0:01:20.1]} 29. h3
{[%clk 0:06:56.9]} 29... Bxf3 {[%clk 0:01:15.2]} 30. Rc8+ {[%clk 0:06:53.6]}
30... Kg7 {[%clk 0:01:11.2]} 31. Bxf3 {[%clk 0:06:53.4]} 31... Rxf3 {[%clk
0:01:06.8]} 32. Rc7 {[%clk 0:06:55.1]} 32... Nxc5 {[%clk 0:00:57]} 33. dxc5
{[%clk 0:06:51.3]} 33... Rc3 {[%clk 0:00:38]} 34. Rxe7 {[%clk 0:06:48.7]} 34...
Rxc5 {[%clk 0:00:33.5]} 35. Rxa7 {[%clk 0:06:46.7]} 35... Bd2 {[%clk 0:00:13.8]}
36. e6 {[%clk 0:06:48.1]} 36... Rc8 {[%clk 0:00:09.1]} 37. Rxf7+ {[%clk
0:06:47.4]} 37... Kh6 {[%clk 0:00:09.4]} 38. a6 {[%clk 0:06:49.3]} 38... Bb4
{[%clk 0:00:07.3]} 39. a7 {[%clk 0:06:46.1]} 39... Ra8 {[%clk 0:00:08.5]} 40.
Rd7 {[%clk 0:06:45.2]} 40... Kg5 {[%clk 0:00:08.6]} 41. e7 {[%clk 0:06:47.1]}
41... Bxe7 {[%clk 0:00:08.6]} 42. Rxe7 {[%clk 0:06:48.8]} 42... Kf6 {[%clk
0:00:10.8]} 43. Rxh7 {[%clk 0:06:49.2]} 43... Ke5 {[%clk 0:00:12.4]} 44. Kf1
{[%clk 0:06:49.7]} 44... Kd4 {[%clk 0:00:12.9]} 45. Ke2 {[%clk 0:06:52]} 45...
Kc3 {[%clk 0:00:13.7]} 46. Kd1 {[%clk 0:06:53.8]} 46... Kd3 {[%clk 0:00:14.7]}
47. Rd7 {[%clk 0:06:52.7]} 47... d4 {[%clk 0:00:16.4]} 48. g4 {[%clk 0:06:53.9]}
48... g5 {[%clk 0:00:14.5]} 49. Rd5 {[%clk 0:06:53.3]} 49... Rxa7 {[%clk
0:00:15.2]} 50. Ke1 {[%clk 0:06:52.1]} 50... Ra1# {[%clk 0:00:15.5]} 0-1

[Event "Rapid della Domenica"]
[Site "Chess.com"]
[Date "2020.05.10"]
[Round "5"]
[White "sirmale49"]
[Black "sergiodone"]
[Result "1-0"]
[WhiteElo "1390"]
[BlackElo "1491"]
[TimeControl "720+3"]
[EndTime "8:08:12 PDT"]
[Termination "sirmale49 ha vinto per abbandono"]

1. f4 {[%clk 0:12:00.6]} 1... c5 {[%clk 0:11:44.5]} 2. Nf3 {[%clk 0:12:01.6]}
2... d6 {[%clk 0:11:45.8]} 3. g3 {[%clk 0:12:01.5]} 3... e6 {[%clk 0:11:43.5]}
4. Bg2 {[%clk 0:12:02.7]} 4... Be7 {[%clk 0:11:45.1]} 5. O-O {[%clk 0:12:03.7]}
5... Nc6 {[%clk 0:11:46.8]} 6. e3 {[%clk 0:12:02.6]} 6... h5 {[%clk 0:11:46.5]}
7. Nc3 {[%clk 0:11:58.1]} 7... h4 {[%clk 0:11:48.4]} 8. g4 {[%clk 0:11:50.8]}
8... h3 {[%clk 0:11:49.1]} 9. Bh1 {[%clk 0:11:51.1]} 9... Nf6 {[%clk 0:11:49]}
10. g5 {[%clk 0:11:48.8]} 10... Nh5 {[%clk 0:11:37.4]} 11. b3 {[%clk 0:11:33.4]}
11... Bxg5 {[%clk 0:11:25.2]} 12. Nxg5 {[%clk 0:11:30.3]} 12... f6 {[%clk
0:11:08.2]} 13. Nxh3 {[%clk 0:11:06]} 13... e5 {[%clk 0:10:54.6]} 14. f5 {[%clk
0:10:36]} 14... Qe7 {[%clk 0:10:46.4]} 15. Nd5 {[%clk 0:10:17.5]} 15... Qf7
{[%clk 0:10:45]} 16. e4 {[%clk 0:10:12.1]} 16... Nd4 {[%clk 0:10:35.2]} 17. c3
{[%clk 0:09:46.2]} 17... Nc6 {[%clk 0:10:17.8]} 18. d3 {[%clk 0:09:34.3]} 18...
b6 {[%clk 0:10:16.3]} 19. Kf2 {[%clk 0:09:10.8]} 19... Bb7 {[%clk 0:10:17.2]}
20. Rg1 {[%clk 0:08:57.2]} 20... O-O-O {[%clk 0:10:16.7]} 21. Be3 {[%clk
0:08:33.2]} 21... Ne7 {[%clk 0:10:15.4]} 22. c4 {[%clk 0:08:25.8]} 22... Nxd5
{[%clk 0:10:16.9]} 23. cxd5 {[%clk 0:08:25.3]} 23... Kb8 {[%clk 0:10:06.7]} 24.
Bf3 {[%clk 0:08:17.9]} 24... Nf4 {[%clk 0:09:57.9]} 25. Bxf4 {[%clk 0:08:11.6]}
25... exf4 {[%clk 0:09:59]} 26. Nxf4 {[%clk 0:08:00.1]} 26... Rxh2+ {[%clk
0:09:56.9]} 27. Rg2 {[%clk 0:07:43.8]} 27... Rxg2+ {[%clk 0:09:58.5]} 28. Bxg2
{[%clk 0:07:43.3]} 28... Rh8 {[%clk 0:09:58.4]} 29. Qf3 {[%clk 0:07:34.8]} 29...
Qe8 {[%clk 0:09:58.5]} 30. Ng6 {[%clk 0:07:31]} 30... Rh6 {[%clk 0:09:51.1]} 31.
Qf4 {[%clk 0:07:30.2]} 31... Qd8 {[%clk 0:09:36.2]} 32. Rh1 {[%clk 0:07:15.3]}
32... Rxh1 {[%clk 0:09:16.7]} 33. Bxh1 {[%clk 0:07:14.5]} 33... Ba6 {[%clk
0:09:13.8]} 34. Ke3 {[%clk 0:07:13.9]} 34... Bc8 {[%clk 0:09:08.3]} 35. Qh4
{[%clk 0:06:48.3]} 35... Kb7 {[%clk 0:09:02.9]} 36. Qh7 {[%clk 0:06:45.9]} 36...
Qc7 {[%clk 0:08:54.8]} 37. Nf8 {[%clk 0:06:37.2]} 37... Ka6 {[%clk 0:08:52.8]}
38. Ne6 {[%clk 0:06:32.7]} 38... Bxe6 {[%clk 0:08:53.5]} 39. fxe6 {[%clk
0:06:32.7]} 39... Qe7 {[%clk 0:08:52.1]} 40. Bf3 {[%clk 0:06:25.4]} 40... b5
{[%clk 0:08:53.6]} 41. Qg8 {[%clk 0:06:09.9]} 41... f5 {[%clk 0:08:55.4]} 42.
Qf7 {[%clk 0:05:58.7]} 42... Qg5+ {[%clk 0:08:56.3]} 43. Ke2 {[%clk 0:05:57.7]}
43... fxe4 {[%clk 0:08:51.1]} 44. dxe4 {[%clk 0:05:46.2]} 44... Qe5 {[%clk
0:08:49.3]} 45. Qf5 {[%clk 0:05:17.2]} 45... Qb2+ {[%clk 0:08:46.9]} 46. Ke1
{[%clk 0:05:11.3]} 46... Qc1+ {[%clk 0:08:30.9]} 47. Bd1 {[%clk 0:05:10]} 47...
Qc3+ {[%clk 0:08:31.1]} 48. Kf2 {[%clk 0:05:04.1]} 48... Qd2+ {[%clk 0:08:28.6]}
49. Kg3 {[%clk 0:04:53.6]} 49... Qxd1 {[%clk 0:08:23.1]} 50. e7 {[%clk
0:04:51.6]} 50... Qe1+ {[%clk 0:08:09.4]} 51. Kg4 {[%clk 0:04:40.9]} 51... Qg1+
{[%clk 0:08:03.7]} 52. Kh5 {[%clk 0:04:40.6]} 52... Qh2+ {[%clk 0:07:35.6]} 53.
Kg6 {[%clk 0:04:30.7]} 53... Qg2+ {[%clk 0:07:22.1]} 54. Kf7 {[%clk 0:04:28.7]}
54... g6 {[%clk 0:07:03.5]} 55. Qxg6 {[%clk 0:04:22]} 55... Qf2+ {[%clk
0:06:55.8]} 56. Qf6 {[%clk 0:04:14]} 56... Qxa2 {[%clk 0:06:38.8]} 57. e8=Q
{[%clk 0:04:09.9]} 57... Qxb3 {[%clk 0:06:36.1]} 58. Qc8+ {[%clk 0:04:08.4]}
58... Ka5 {[%clk 0:06:36.1]} 59. Qa1+ {[%clk 0:04:06.1]} 59... Kb4 {[%clk
0:06:34.1]} 60. Qe1+ {[%clk 0:03:45.8]} 60... Kc4 {[%clk 0:06:22.7]} 61. Qg4
{[%clk 0:03:33]} 61... a5 {[%clk 0:06:06.6]} 62. e5+ {[%clk 0:03:33.6]} 62...
Kxd5 {[%clk 0:06:04.3]} 63. Qh1+ {[%clk 0:03:27]} 1-0

[Event "Rapid della Domenica"]
[Site "Chess.com"]
[Date "2020.05.10"]
[Round "6"]
[White "pedrak"]
[Black "laremaro"]
[Result "0-1"]
[WhiteElo "1670"]
[BlackElo "1645"]
[TimeControl "720+3"]
[EndTime "8:17:20 PDT"]
[Termination "laremaro ha vinto per scaccomatto"]

1. d4 {[%clk 0:11:54.3]} 1... d5 {[%clk 0:12:02.9]} 2. Nf3 {[%clk 0:11:55.7]}
2... Nf6 {[%clk 0:12:04.2]} 3. Bf4 {[%clk 0:11:56.6]} 3... c5 {[%clk 0:12:04.2]}
4. e3 {[%clk 0:11:57.9]} 4... Qb6 {[%clk 0:12:05.4]} 5. Qc1 {[%clk 0:11:48.4]}
5... Bf5 {[%clk 0:12:00.8]} 6. c3 {[%clk 0:11:49.7]} 6... e6 {[%clk 0:12:01.3]}
7. Nbd2 {[%clk 0:11:50]} 7... Nc6 {[%clk 0:11:58.6]} 8. Nh4 {[%clk 0:11:49.4]}
8... Bg6 {[%clk 0:11:56.8]} 9. Nxg6 {[%clk 0:11:50.5]} 9... hxg6 {[%clk
0:11:58.8]} 10. h3 {[%clk 0:11:52.2]} 10... cxd4 {[%clk 0:11:58.3]} 11. exd4
{[%clk 0:11:53.2]} 11... Rc8 {[%clk 0:11:59.5]} 12. Qb1 {[%clk 0:11:42.7]} 12...
Be7 {[%clk 0:11:58.5]} 13. Bd3 {[%clk 0:11:42.5]} 13... O-O {[%clk 0:11:59]} 14.
O-O {[%clk 0:11:43.9]} 14... Na5 {[%clk 0:11:51.7]} 15. Be3 {[%clk 0:11:30.9]}
15... Bd6 {[%clk 0:11:33]} 16. b4 {[%clk 0:11:16.5]} 16... Nc4 {[%clk
0:11:19.3]} 17. Nxc4 {[%clk 0:11:16.9]} 17... dxc4 {[%clk 0:11:21.5]} 18. Be2
{[%clk 0:11:11.8]} 18... Nd5 {[%clk 0:11:23.1]} 19. Bd2 {[%clk 0:11:11.9]} 19...
e5 {[%clk 0:11:24]} 20. dxe5 {[%clk 0:11:03.7]} 20... Bxe5 {[%clk 0:11:25.4]}
21. Qc2 {[%clk 0:11:04.9]} 21... Qf6 {[%clk 0:11:06.3]} 22. Rac1 {[%clk
0:11:03.8]} 22... b5 {[%clk 0:10:30.4]} 23. Bf3 {[%clk 0:11:04.1]} 23... Nf4
{[%clk 0:10:24]} 24. Bxf4 {[%clk 0:10:32.8]} 24... Qxf4 {[%clk 0:10:24.5]} 25.
Rfe1 {[%clk 0:10:00.6]} 25... Qh2+ {[%clk 0:10:21.2]} 26. Kf1 {[%clk 0:10:02.2]}
26... Rfe8 {[%clk 0:10:18]} 27. Re4 {[%clk 0:09:58.4]} 27... f5 {[%clk
0:10:08.2]} 28. Re3 {[%clk 0:09:18]} 28... Bf4 {[%clk 0:10:06.1]} 29. Bd5+
{[%clk 0:09:18.6]} 29... Kh8 {[%clk 0:10:05.3]} 30. Ree1 {[%clk 0:08:19.8]}
30... Qh1# {[%clk 0:10:03.8]} 0-1

[Event "Rapid della Domenica"]
[Site "Chess.com"]
[Date "2020.05.10"]
[Round "6"]
[White "sergiodone"]
[Black "OMatteoWuO"]
[Result "1-0"]
[WhiteElo "1493"]
[BlackElo "1178"]
[TimeControl "720+3"]
[EndTime "8:22:45 PDT"]
[Termination "sergiodone ha vinto per scaccomatto"]

1. e4 {[%clk 0:12:02.9]} 1... c5 {[%clk 0:12:00.4]} 2. Nf3 {[%clk 0:12:03]} 2...
Nc6 {[%clk 0:12:01.6]} 3. d4 {[%clk 0:12:04.7]} 3... cxd4 {[%clk 0:12:02]} 4.
Nxd4 {[%clk 0:12:05.8]} 4... Nf6 {[%clk 0:12:03.5]} 5. Nc3 {[%clk 0:12:00.9]}
5... d6 {[%clk 0:12:05.1]} 6. f3 {[%clk 0:12:01.4]} 6... Bd7 {[%clk 0:11:45.8]}
7. Be3 {[%clk 0:12:02.9]} 7... e5 {[%clk 0:11:26.6]} 8. Nb3 {[%clk 0:11:51.1]}
8... Be7 {[%clk 0:11:05.2]} 9. Be2 {[%clk 0:11:52.4]} 9... Bf8 {[%clk
0:11:04.7]} 10. Qd2 {[%clk 0:11:53.9]} 10... Qc7 {[%clk 0:10:53.6]} 11. h4
{[%clk 0:11:50.1]} 11... a6 {[%clk 0:10:47.6]} 12. g4 {[%clk 0:11:50.5]} 12...
h6 {[%clk 0:10:44.3]} 13. h5 {[%clk 0:11:51.8]} 13... b5 {[%clk 0:10:42.7]} 14.
Nd5 {[%clk 0:11:52.8]} 14... Nxd5 {[%clk 0:10:43.3]} 15. exd5 {[%clk 0:11:54.6]}
15... Ne7 {[%clk 0:10:22.3]} 16. c3 {[%clk 0:11:17.4]} 16... f5 {[%clk
0:10:10.6]} 17. O-O-O {[%clk 0:11:06.2]} 17... f4 {[%clk 0:09:35.8]} 18. Bf2
{[%clk 0:11:05.9]} 18... g5 {[%clk 0:09:32.4]} 19. Qd3 {[%clk 0:10:40.5]} 19...
b4 {[%clk 0:09:16.2]} 20. c4 {[%clk 0:10:39.1]} 20... Bb5 {[%clk 0:09:00.8]} 21.
Qe4 {[%clk 0:10:30.9]} 21... a5 {[%clk 0:08:35.7]} 22. Kb1 {[%clk 0:10:29.8]}
22... Ba6 {[%clk 0:08:24.2]} 23. c5 {[%clk 0:10:10.5]} 23... Bxe2 {[%clk
0:08:06.9]} 24. Qxe2 {[%clk 0:10:12]} 24... dxc5 {[%clk 0:07:46.9]} 25. d6
{[%clk 0:10:12]} 25... Qc6 {[%clk 0:07:07.5]} 26. dxe7 {[%clk 0:10:11.9]} 26...
Bxe7 {[%clk 0:07:06.4]} 27. Qe4 {[%clk 0:09:48.3]} 27... Qxe4+ {[%clk
0:06:59.1]} 28. fxe4 {[%clk 0:09:49.2]} 28... O-O {[%clk 0:06:50.3]} 29. Bxc5
{[%clk 0:09:48.7]} 29... Bxc5 {[%clk 0:06:51.5]} 30. Nxc5 {[%clk 0:09:49.7]}
30... f3 {[%clk 0:06:49.9]} 31. Rhf1 {[%clk 0:09:45.2]} 31... Rac8 {[%clk
0:06:28.8]} 32. Nd7 {[%clk 0:09:34.7]} 32... Rf4 {[%clk 0:06:05.5]} 33. Nxe5
{[%clk 0:09:30.9]} 33... Rxe4 {[%clk 0:05:47.4]} 34. Ng6 {[%clk 0:09:31.7]}
34... Rxg4 {[%clk 0:05:35.4]} 35. Rxf3 {[%clk 0:09:28.7]} 35... Rgc4 {[%clk
0:05:16.9]} 36. Rfd3 {[%clk 0:09:18.5]} 36... g4 {[%clk 0:05:05.2]} 37. Ne7+
{[%clk 0:09:18]} 37... Kh7 {[%clk 0:05:03.8]} 38. Nxc8 {[%clk 0:09:19.4]} 38...
Rxc8 {[%clk 0:05:05.3]} 39. Rg3 {[%clk 0:09:19.3]} 39... Rc4 {[%clk 0:05:03.7]}
40. Rdg1 {[%clk 0:09:20.1]} 40... Rc5 {[%clk 0:05:02.1]} 41. Rxg4 {[%clk
0:09:21.7]} 41... Rxh5 {[%clk 0:05:03.8]} 42. Rg7+ {[%clk 0:09:20.6]} 42... Kh8
{[%clk 0:05:03.8]} 43. Rg8+ {[%clk 0:09:22.6]} 43... Kh7 {[%clk 0:05:05.4]} 44.
R1g7# {[%clk 0:09:24]} 1-0

[Event "Rapid della Domenica"]
[Site "Chess.com"]
[Date "2020.05.10"]
[Round "6"]
[White "crippo"]
[Black "BAKR1980"]
[Result "0-1"]
[WhiteElo "1502"]
[BlackElo "1745"]
[TimeControl "720+3"]
[EndTime "8:22:54 PDT"]
[Termination "BAKR1980 ha vinto per abbandono"]

1. e4 {[%clk 0:12:02.9]} 1... d6 {[%clk 0:11:55.7]} 2. Nc3 {[%clk 0:12:02.9]}
2... e5 {[%clk 0:11:52.1]} 3. Bc4 {[%clk 0:12:02.1]} 3... Nc6 {[%clk 0:11:45.6]}
4. h3 {[%clk 0:11:58.4]} 4... Nf6 {[%clk 0:11:39.3]} 5. d3 {[%clk 0:11:59.1]}
5... Be7 {[%clk 0:11:28.5]} 6. Nf3 {[%clk 0:11:59.8]} 6... O-O {[%clk
0:11:21.8]} 7. O-O {[%clk 0:12:01.3]} 7... Na5 {[%clk 0:11:15.9]} 8. Bb3 {[%clk
0:12:01.9]} 8... Bd7 {[%clk 0:11:10.7]} 9. Bg5 {[%clk 0:12:00.8]} 9... a6 {[%clk
0:11:04.8]} 10. Nh2 {[%clk 0:11:59.4]} 10... c6 {[%clk 0:10:57.4]} 11. Kh1
{[%clk 0:11:49.7]} 11... h6 {[%clk 0:10:51.9]} 12. Bh4 {[%clk 0:11:46]} 12... b5
{[%clk 0:10:44.2]} 13. Bg3 {[%clk 0:11:41.7]} 13... c5 {[%clk 0:10:33.9]} 14.
Bd5 {[%clk 0:11:41.4]} 14... Rb8 {[%clk 0:09:59.6]} 15. f4 {[%clk 0:11:27.5]}
15... exf4 {[%clk 0:09:53.3]} 16. Bxf4 {[%clk 0:11:27.3]} 16... b4 {[%clk
0:09:47.7]} 17. Ne2 {[%clk 0:11:26.1]} 17... Nxd5 {[%clk 0:09:42.3]} 18. exd5
{[%clk 0:11:26.8]} 18... Nb7 {[%clk 0:09:33.6]} 19. Ng3 {[%clk 0:11:27.6]} 19...
Qe8 {[%clk 0:09:26.4]} 20. Re1 {[%clk 0:11:19.1]} 20... f5 {[%clk 0:09:20.4]}
21. Qd2 {[%clk 0:11:16.4]} 21... g5 {[%clk 0:09:12.3]} 22. Re2 {[%clk
0:10:35.4]} 22... Qf7 {[%clk 0:08:53.5]} 23. Rae1 {[%clk 0:10:21.5]} 23... Bd8
{[%clk 0:08:28.4]} 24. Nf3 {[%clk 0:09:43.3]} 24... gxf4 {[%clk 0:07:51.3]} 25.
Qxf4 {[%clk 0:09:43.3]} 25... Qg6 {[%clk 0:07:39]} 26. Re6 {[%clk 0:09:19.2]}
26... Bxe6 {[%clk 0:07:31.7]} 27. Rxe6 {[%clk 0:09:16.3]} 27... Rf6 {[%clk
0:07:24.5]} 28. Nh4 {[%clk 0:09:03]} 28... Qg5 {[%clk 0:06:38]} 29. Qxg5+ {[%clk
0:08:45.2]} 29... hxg5 {[%clk 0:06:33.4]} 30. Nhxf5 {[%clk 0:08:47]} 30... Rxe6
{[%clk 0:06:26.5]} 31. dxe6 {[%clk 0:08:47.9]} 31... Bf6 {[%clk 0:06:20.2]} 32.
Nh5 {[%clk 0:08:48.3]} 32... Bxb2 {[%clk 0:06:11.7]} 33. e7 {[%clk 0:08:38.5]}
33... Kf7 {[%clk 0:06:06.6]} 34. g4 {[%clk 0:08:31.1]} 34... Be5 {[%clk
0:06:00.2]} 35. Kg2 {[%clk 0:08:27.3]} 35... d5 {[%clk 0:05:54.6]} 36. Kf3
{[%clk 0:08:29]} 36... Nd6 {[%clk 0:05:49.2]} 0-1